fUSD/lending_fUSD_20260408
["ID","MTS","AMOUNT","RATE_DAILY","PERIOD"]
[420061686,1775641849778,-150.0,0.00015046,2]
[420061687,1775641849787,-150.0,0.00015047,2]
[420061688,1775641849796,-179.092875,0.00015053,2]
[420061689,1775641849806,-150.0,0.00015055,2]
[420061690,1775641849815,-608.16,0.00015057,2]
[420061691,1775641849825,-150.0,0.00015058,2]
[420061692,1775641849834,-150.0,0.00015063,2]
[420061693,1775641849843,-25826.60419622,0.00015066,2]
[420061694,1775641849852,-155.0,0.00015067,2]
[420061695,1775641849861,-985.91,0.00015068,2]
[420061696,1775641849870,-840.38,0.00015068,2]
[420061697,1775641849879,-150.0,0.00015071,2]
[420061698,1775641849888,-150.0,0.00015077,2]
[420061699,1775641849898,-150.0,0.00015079,2]
[420061700,1775641849908,-150.0,0.0001508,2]
[420061701,1775641849917,-150.0,0.00015081,2]
[420061702,1775641849927,-150.0,0.00015086,2]
[420061703,1775641849936,-500.0,0.00015086,2]
[420061704,1775641849945,-151.0,0.00015086,2]
[420061705,1775641849954,-171.59,0.00015089,2]
[420061706,1775641849964,-6976.45084756,0.0001509,2]
[420061707,1775641849973,-888.71981631,0.00015092,2]
[420061708,1775641849982,-150.0,0.00015097,2]
[420061709,1775641849992,-150.0,0.00015101,2]
[420061710,1775641850001,-150.0,0.00015102,2]
[420061711,1775641850010,-150.0,0.00015108,2]
[420061712,1775641850020,-150.0,0.00015115,2]
[420061713,1775641850030,-524.53,0.00015119,2]
[420061714,1775641850039,-150.0,0.0001512,2]
[420061715,1775641850048,-150.0,0.00015123,2]
[420061716,1775641850057,-150.0,0.00015123,2]
[420061717,1775641850067,-150.0,0.00015127,2]
[420061718,1775641850076,-150.0,0.00015131,2]
[420061719,1775641850085,-150.0,0.00015138,2]
[420061720,1775641850095,-150.0,0.00015138,2]
[420061721,1775641850104,-500.0,0.00015141,2]
[420061722,1775641850113,-151.0,0.00015141,2]
[420061723,1775641850123,-150.0,0.00015141,2]
[420061724,1775641850133,-150.0,0.00015145,2]
[420061725,1775641850142,-150.0,0.00015148,2]
[420061726,1775641850152,-150.0,0.00015149,2]
[420061727,1775641850161,-150.0,0.0001516,2]
[420061728,1775641850170,-150.0,0.00015162,2]
[420061729,1775641850179,-150.0,0.00015167,2]
[420061730,1775641850189,-152.1118183,0.00015168,2]
[420061731,1775641850198,-150.0,0.00015169,2]
[420061732,1775641850207,-150.0,0.00015174,2]
[420061733,1775641850217,-150.0,0.0001518,2]
[420061734,1775641850227,-150.0,0.00015183,2]
[420061735,1775641850236,-150.0,0.00015189,2]
[420061736,1775641850246,-500.0,0.00015196,2]
[420061737,1775641850255,-151.0,0.00015196,2]
[420061738,1775641850264,-5310.60071211,0.000152,2]
[420061739,1775641850274,-5000.0,0.000152,2]
[420061740,1775641850283,-5000.0,0.000152,2]
[420061741,1775641850293,-5000.0,0.000152,2]
[420061742,1775641850303,-5000.0,0.000152,2]
[420061743,1775641850312,-150.0,0.000152,2]
[420061744,1775641850323,-150.0,0.000152,2]
[420061745,1775641850333,-150.0,0.000152,2]
[420061746,1775641850343,-150.0,0.000152,2]
[420061747,1775641850352,-150.0,0.000152,2]
[420061748,1775641850362,-150.0,0.000152,2]
[420061749,1775641850371,-150.0,0.000152,2]
[420061750,1775641850381,-42605.67341414,0.00015209,2]
[420061751,1775641850391,-150.0,0.00015211,2]
[420061752,1775641850400,-150.0,0.00015217,2]
[420061753,1775641850410,-150.0,0.0001522,2]
[420061754,1775641850420,-506.0,0.00015224,3]
[420061755,1775641850429,-150.0,0.00015226,2]
[420061756,1775641850438,-150.0,0.00015231,2]
[420061757,1775641850448,-501.00461758,0.00015232,2]
[420061758,1775641850457,-1500.0,0.00015232,2]
[420061759,1775641850469,-1500.0,0.00015232,2]
[420061760,1775641850478,-1500.0,0.00015232,2]
[420061761,1775641850487,-150.0,0.00015233,2]
[420061762,1775641850496,-150.0,0.00015238,2]
[420061763,1775641850505,-150.0,0.0001524,2]
[420061764,1775641850515,-150.0,0.00015251,2]
[420061765,1775641850525,-500.0,0.00015251,2]
[420061766,1775641850534,-151.0,0.00015251,2]
[420061767,1775641850544,-150.0,0.00015252,2]
[420061768,1775641850553,-150.0,0.00015255,2]
[420061769,1775641850562,-150.0,0.00015259,2]
[420061770,1775641850571,-150.0,0.00015262,2]
[420061771,1775641850580,-150.0,0.00015262,2]
[420061772,1775641850590,-150.0,0.00015273,2]
[420061773,1775641850599,-1000.0,0.00015274,7]
[420061774,1775641850608,-150.0,0.00015277,2]
[420061775,1775641850618,-150.0,0.00015277,2]
[420061776,1775641850627,-150.0,0.0001528,2]
[420061777,1775641850637,-150.0,0.00015285,2]
[420061778,1775641850646,-150.0,0.00015292,2]
[420061779,1775641850656,-150.0,0.00015298,2]
[420061780,1775641850665,-150.0,0.00015299,2]
[420061781,1775641850674,-252.8202,0.000153,2]
[420061782,1775641850683,-150.0,0.00015303,2]
[420061783,1775641850693,-500.0,0.00015306,2]
[420061784,1775641850702,-151.0,0.00015306,2]
[420061785,1775641850711,-150.0,0.00015314,2]
[420061786,1775641850720,-150.0,0.00015319,2]
[420061787,1775641850730,-150.0,0.0001532,2]
[420061788,1775641850739,-150.0,0.00015321,2]
[420061789,1775641850748,-150.0,0.00015323,2]
[420061790,1775641850758,-150.0,0.00015329,2]
[420061791,1775641850767,-150.0,0.00015337,2]
[420061792,1775641850776,-987.75,0.00015342,2]
[420061793,1775641850786,-150.0,0.00015342,2]
[420061794,1775641850795,-2000.0,0.00015342,2]
[420061795,1775641850805,-150.0,0.00015345,2]
[420061796,1775641850814,-150.0,0.00015353,2]
[420061797,1775641850823,-150.0,0.00015354,2]
[420061798,1775641850833,-150.0,0.00015355,2]
[420061799,1775641850843,-187.78006525,0.00015359,2]
[420061800,1775641850853,-1280.88388878,0.00015359,2]
[420061801,1775641850863,-200.0,0.00015359,2]
[420061802,1775641850872,-771.01748645,0.00015359,2]
[420061803,1775641850881,-181.08010149,0.00015359,2]
[420061804,1775641850890,-591.41950389,0.00015359,2]
[420061805,1775641850899,-1573.0,0.0001536,2]
[420061806,1775641850908,-150.0,0.0001536,2]
[420061807,1775641850918,-500.0,0.00015361,2]
[420061808,1775641850928,-151.0,0.00015361,2]
[420061809,1775641850937,-150.0,0.00015364,2]
[420061810,1775641850946,-150.0,0.00015376,2]
[420061811,1775641850955,-150.0,0.00015381,2]
[420061812,1775641850965,-150.0,0.00015385,2]
[420061813,1775641850974,-150.0,0.00015385,2]
[420061814,1775641850983,-150.0,0.00015386,2]
[420061815,1775641850992,-150.0,0.00015387,2]
[420061816,1775641851002,-150.0,0.0001539,2]
[420061817,1775641851011,-350.0,0.00015397,2]
[420061818,1775641851020,-150.0,0.000154,2]
[420061819,1775641851030,-2010.0,0.000154,2]
[420061820,1775641851039,-150.0,0.00015406,2]
[420061821,1775641851048,-150.0,0.00015408,2]
[420061822,1775641851058,-150.0,0.00015415,2]
[420061823,1775641851067,-150.0,0.00015415,2]
[420061824,1775641851076,-500.0,0.00015416,2]
[420061825,1775641851085,-151.0,0.00015416,2]
[420061826,1775641851095,-150.0,0.00015418,2]
[420061827,1775641851105,-150.0,0.00015421,2]
[420061828,1775641851115,-150.0,0.0001543,2]
[420061829,1775641851125,-150.0,0.00015432,2]
[420061830,1775641851135,-461.47411148,0.00015438,2]
[420061831,1775641851144,-150.0,0.0001544,2]
[420061832,1775641851154,-150.0,0.00015446,2]
[420061833,1775641851163,-150.0,0.00015452,2]
[420061834,1775641851173,-150.0,0.00015454,2]
[420061835,1775641851183,-150.0,0.00015455,2]
[420061836,1775641851192,-150.0,0.00015458,2]
[420061837,1775641851201,-150.0,0.00015467,2]
[420061838,1775641851211,-863.61,0.00015471,2]
[420061839,1775641851220,-1674.23,0.00015471,2]
[420061840,1775641851229,-3443.82,0.00015471,2]
[420061841,1775641851239,-500.0,0.00015471,2]
[420061842,1775641851249,-151.0,0.00015471,2]
[420061843,1775641851259,-150.0,0.00015474,2]
[420061844,1775641851268,-150.0,0.00015477,2]
[420061845,1775641851278,-150.0,0.0001548,2]
[420061846,1775641851287,-150.0,0.00015484,2]
[420061847,1775641851296,-150.0,0.00015489,2]
[420061848,1775641851306,-150.0,0.00015491,2]
[420061849,1775641851316,-150.0,0.00015493,2]
[420061850,1775641851325,-150.0,0.00015496,2]
[420061851,1775641851335,-150.0,0.00015508,2]
[420061852,1775641851344,-150.0,0.00015508,2]
[420061853,1775641851354,-150.0,0.0001551,2]
[420061854,1775641851363,-150.0,0.00015518,2]
[420061855,1775641851373,-150.0,0.0001552,2]
[420061856,1775641851382,-150.0,0.00015523,2]
[420061857,1775641851392,-500.0,0.00015526,2]
[420061858,1775641851402,-151.0,0.00015526,2]
[420061859,1775641851411,-150.0,0.00015532,2]
[420061860,1775641851420,-150.0,0.00015535,2]
[420061861,1775641851430,-150.0,0.00015538,2]
[420061862,1775641851439,-150.0,0.0001554,2]
[420061863,1775641851449,-150.0,0.00015543,2]
[420061864,1775641851458,-150.0,0.00015557,2]
[420061865,1775641851467,-150.0,0.0001556,2]
[420061866,1775641851477,-150.0,0.00015561,2]
[420061867,1775641851486,-150.0,0.00015562,2]
[420061868,1775641851495,-150.0,0.00015564,2]
[420061869,1775641851504,-1613.0,0.00015569,2]
[420061870,1775641851513,-6453.0,0.00015569,2]
[420061871,1775641851522,-150.0,0.00015569,2]
[420061872,1775641851533,-150.0,0.00015571,2]
[420061873,1775641851542,-150.0,0.00015577,2]
[420061874,1775641851551,-500.0,0.00015581,2]
[420061875,1775641851561,-151.0,0.00015581,2]
[420061876,1775641851570,-150.0,0.00015584,2]
[420061877,1775641851579,-150.0,0.00015587,2]
[420061878,1775641851588,-2129.0,0.0001559,2]
[420061879,1775641851597,-150.0,0.00015591,2]
[420061880,1775641851607,-150.0,0.000156,2]
[420061881,1775641851616,-150.0,0.000156,2]
[420061882,1775641851625,-150.0,0.000156,2]
[420061883,1775641851635,-150.0,0.00015605,2]
[420061884,1775641851644,-150.0,0.0001561,2]
[420061885,1775641851654,-150.0,0.00015613,2]
[420061886,1775641851663,-3682.70878492,0.00015616,2]
[420061887,1775641851672,-150.0,0.00015619,2]
[420061888,1775641851682,-150.0,0.00015626,2]
[420061889,1775641851691,-150.0,0.00015627,2]
[420061890,1775641851700,-150.0,0.00015631,2]
[420061891,1775641851709,-150.0,0.00015631,2]
[420061892,1775641851718,-150.0,0.00015636,2]
[420061893,1775641851728,-150.0,0.00015639,2]
[420061894,1775641851737,-150.0,0.0001564,2]
[420061895,1775641851746,-150.0,0.00015649,2]
[420061896,1775641851756,-150.0,0.00015649,2]
[420061897,1775641851765,-150.0,0.0001566,2]
[420061898,1775641851774,-150.0,0.00015662,2]
[420061899,1775641851783,-150.0,0.00015665,2]
[420061900,1775641851793,-150.0,0.00015671,2]
[420061901,1775641851802,-672.69163722,0.0001568,2]
[420061902,1775641851811,-150.0,0.0001568,2]
[420061903,1775641851820,-2295.88,0.00015684,2]
[420061904,1775641851830,-1116.15,0.00015684,2]
[420061905,1775641851840,-150.0,0.00015688,2]
[420061906,1775641851849,-434.94685124,0.0001569,2]
[420061907,1775641851859,-150.0,0.0001569,2]
[420061908,1775641851868,-150.0,0.00015692,2]
[420061909,1775641851877,-150.0,0.00015693,2]
[420061910,1775641851887,-150.0,0.00015694,2]
[420061911,1775641851896,-150.0,0.00015695,2]
[420061912,1775641851905,-10000.0,0.000157,2]
[420061913,1775641851915,-3449.0,0.000157,2]
[420061914,1775641851924,-5646802.03746946,0.000157,2]
[420061915,1775641851934,-1590.023497,0.000157,2]
[420061916,1775641851943,-1009.466865,0.000157,2]
[420061917,1775641851952,-151.0,0.000157,2]
[420061918,1775641851962,-661.805794,0.000157,2]
[420061919,1775641851971,-1590.023497,0.000157,2]
[420061920,1775641851980,-1009.466865,0.000157,2]
[420061921,1775641851990,-151.0,0.000157,2]
[420061922,1775641851999,-151.0,0.000157,2]
[420061923,1775641852009,-661.805794,0.000157,2]
[420061924,1775641852018,-1590.023497,0.000157,2]
[420061925,1775641852027,-1009.466865,0.000157,2]
[420061926,1775641852037,-190.470018,0.000157,2]
[420061927,1775641852046,-151.0,0.000157,2]
[420061928,1775641852056,-151.0,0.000157,2]
[420061929,1775641852065,-151.0,0.000157,2]
[420061930,1775641852075,-661.805794,0.000157,2]
[420061931,1775641852084,-1009.466865,0.000157,2]
[420061932,1775641852093,-151.0,0.000157,2]
[420061933,1775641852252,-1121.475405,0.000157,2]
[420061934,1775641852277,-661.805794,0.000157,2]
[420061935,1775641852287,-1121.475405,0.000157,2]
[420061936,1775641852297,-190.470018,0.000157,2]
[420061937,1775641852307,-2492.518529,0.000157,2]
[420061938,1775641852317,-151.0,0.000157,2]
[420061939,1775641852327,-1121.475405,0.000157,2]
[420061940,1775641852337,-151.0,0.000157,2]
[420061941,1775641852347,-190.470018,0.000157,2]
[420061942,1775641852356,-2492.518529,0.000157,2]
[420061943,1775641852367,-2516.179105,0.000157,2]
[420061944,1775641852378,-1590.023497,0.000157,2]
[420061945,1775641852388,-151.0,0.000157,2]
[420061946,1775641852399,-1121.475405,0.000157,2]
[420061947,1775641852408,-190.470018,0.000157,2]
[420061948,1775641852418,-2172.987222,0.000157,2]
[420061949,1775641852428,-2492.518529,0.000157,2]
[420061950,1775641852438,-2516.179105,0.000157,2]
[420061951,1775641852448,-151.0,0.000157,2]
[420061952,1775641852459,-2172.987222,0.000157,2]
[420061953,1775641852469,-2492.518529,0.000157,2]
[420061954,1775641852479,-150.0,0.00015709,2]
[420061955,1775641852490,-150.0,0.00015715,2]
[420061956,1775641852500,-150.0,0.00015716,2]
[420061957,1775641852510,-1600.0,0.00015716,2]
[420061958,1775641852520,-150.0,0.0001572,2]
[420061959,1775641852529,-150.0,0.00015723,2]
[420061960,1775641852540,-150.0,0.00015727,2]
[420061961,1775641852550,-150.0,0.00015728,2]
[420061962,1775641852560,-150.0,0.00015737,2]
[420061963,1775641852571,-25826.60419622,0.0001574,2]
[420061964,1775641852581,-150.0,0.00015742,2]
[420061965,1775641852591,-150.0,0.00015754,2]
[420061966,1775641852601,-150.0,0.00015754,2]
[420061967,1775641852610,-150.0,0.00015759,2]
[420061968,1775641852621,-150.0,0.0001576,2]
[420061969,1775641852631,-150.0,0.00015762,2]
[420061970,1775641852641,-1000.0,0.00015763,2]
[420061971,1775641852651,-150.0,0.00015766,2]
[420061972,1775641852661,-150.0,0.00015768,2]
[420061973,1775641852671,-150.0,0.00015771,2]
[420061974,1775641852680,-1000.0,0.00015776,2]
[420061975,1775641852690,-1500.0,0.00015778,2]
[420061976,1775641852700,-1500.0,0.00015778,2]
[420061977,1775641852710,-2000.0,0.0001578,2]
[420061978,1775641852720,-2000.0,0.0001578,2]
[420061979,1775641852729,-2000.0,0.0001578,2]
[420061980,1775641852739,-150.0,0.00015781,2]
[420061981,1775641852749,-150.0,0.00015782,2]
[420061982,1775641852759,-150.0,0.00015785,2]
[420061983,1775641852769,-150.0,0.00015794,2]
[420061984,1775641852778,-150.0,0.00015796,2]
[420061985,1775641852788,-350.0,0.00015796,2]
[420061986,1775641852797,-1000.0,0.00015798,2]
[420061987,1775641852808,-8898.0,0.000158,2]
[420061988,1775641852818,-150.0,0.000158,2]
[420061989,1775641852829,-150.0,0.00015803,2]
[420061990,1775641852839,-150.0,0.00015805,2]
[420061991,1775641852850,-500.0,0.00015808,2]
[420061992,1775641852860,-500.0,0.00015808,2]
[420061993,1775641852869,-396.4808442,0.00015808,2]
[420061994,1775641852879,-150.0,0.00015815,2]
[420061995,1775641852889,-150.0,0.00015819,2]
[420061996,1775641852900,-150.0,0.00015825,2]
[420061997,1775641852910,-150.0,0.0001583,2]
[420061998,1775641852919,-113846.4586908,0.0001584,2]
[420061999,1775641852929,-150.0,0.0001584,2]
[420062000,1775641852939,-2000.0,0.0001584,2]
[420062001,1775641852950,-2000.0,0.0001584,2]
[420062002,1775641852960,-150.0,0.00015844,2]
[420062003,1775641852970,-150.0,0.00015845,2]
[420062004,1775641852979,-150.0,0.00015846,2]
[420062005,1775641852989,-150.0,0.00015847,2]
[420062006,1775641852999,-150.0,0.00015848,2]
[420062007,1775641853009,-2000.0,0.0001585,2]
[420062008,1775641853019,-201.510803,0.00015854,7]
[420062009,1775641853029,-618.599399,0.00015854,2]
[420062010,1775641853038,-480.418257,0.00015854,7]
[420062011,1775641853048,-150.0,0.00015855,2]
[420062012,1775641853058,-350.0,0.00015855,2]
[420062013,1775641853068,-163.8001,0.0001586,2]
[420062014,1775641853078,-150.0,0.00015864,2]
[420062015,1775641853088,-150.0,0.00015866,2]
[420062016,1775641853098,-150.0,0.00015868,2]
[420062017,1775641853108,-163.8001,0.0001587,2]
[420062018,1775641853118,-150.0,0.00015871,2]
[420062019,1775641853128,-500.0,0.00015872,2]
[420062020,1775641853138,-500.0,0.00015873,2]
[420062021,1775641853149,-500.0,0.00015873,2]
[420062022,1775641853159,-308.60154884,0.00015873,2]
[420062023,1775641853169,-150.0,0.00015877,2]
[420062024,1775641853179,-150.0,0.00015877,2]
[420062025,1775641853190,-150.0,0.0001588,2]
[420062026,1775641853201,-150.0,0.00015883,2]
[420062027,1775641853212,-500.0,0.0001589,2]
[420062028,1775641853223,-500.0,0.0001589,2]
[420062029,1775641853233,-500.0,0.0001589,2]
[420062030,1775641853244,-194.91667222,0.0001589,2]
[420062031,1775641853254,-2000.0,0.0001589,2]
[420062032,1775641853265,-150.0,0.0001589,2]
[420062033,1775641853276,-2500.0,0.0001589,2]
[420062034,1775641853287,-150.0,0.00015897,2]
[420062035,1775641853297,-150.0,0.00015898,2]
[420062036,1775641853307,-25000.0,0.000159,3]
[420062037,1775641853317,-25000.0,0.000159,3]
[420062038,1775641853328,-42605.67341414,0.000159,2]
[420062039,1775641853339,-871.91474732,0.000159,2]
[420062040,1775641853349,-7390.22407294,0.000159,2]
[420062041,1775641853360,-25000.0,0.000159,3]
[420062042,1775641853370,-5546.3148707,0.000159,2]
[420062043,1775641853379,-184.01842302,0.000159,2]
[420062044,1775641853390,-160.59720398,0.000159,2]
[420062045,1775641853400,-1962.0,0.000159,5]
[420062046,1775641853410,-1570.0,0.000159,5]
[420062047,1775641853420,-2000.0,0.000159,2]
[420062048,1775641853431,-194.72792766,0.00015907,2]
[420062049,1775641853441,-1328.27659266,0.00015907,2]
[420062050,1775641853451,-200.0,0.00015907,2]
[420062051,1775641853461,-799.54513345,0.00015907,2]
[420062052,1775641853471,-187.78006525,0.00015907,2]
[420062053,1775641853481,-150.0,0.00015908,2]
[420062054,1775641853491,-150.0,0.00015912,2]
[420062055,1775641853501,-465.0,0.00015919,2]
[420062056,1775641853511,-1000.0,0.00015919,2]
[420062057,1775641853522,-150.0,0.0001592,2]
[420062058,1775641853532,-150.0,0.00015922,2]
[420062059,1775641853542,-150.0,0.00015923,2]
[420062060,1775641853552,-150.0,0.00015924,2]
[420062061,1775641853562,-150.0,0.00015927,2]
[420062062,1775641853571,-150.0,0.00015932,2]
[420062063,1775641853581,-150.0,0.00015934,2]
[420062064,1775641853590,-150.0,0.00015938,2]
[420062065,1775641853600,-250.0,0.00015945,2]
[420062066,1775641853609,-150.0,0.00015948,2]
[420062067,1775641853619,-150.0,0.00015956,2]
[420062068,1775641853628,-150.0,0.0001596,2]
[420062069,1775641853638,-150.0,0.00015961,2]
[420062070,1775641853648,-150.0,0.00015966,2]
[420062071,1775641853658,-150.0,0.00015969,2]
[420062072,1775641853667,-501.46029237,0.00015973,2]
[420062073,1775641853677,-162.60419222,0.00015973,2]
[420062074,1775641853687,-500.0,0.00015973,2]
[420062075,1775641853696,-500.0,0.00015973,2]
[420062076,1775641853705,-500.0,0.00015973,2]
[420062077,1775641853715,-500.0,0.00015973,2]
[420062078,1775641853726,-500.0,0.00015973,2]
[420062079,1775641853736,-500.0,0.00015973,2]
[420062080,1775641853745,-1000.0,0.00015973,2]
[420062081,1775641853755,-150.0,0.00015974,2]
[420062082,1775641853765,-150.0,0.00015978,2]
[420062083,1775641853774,-151.0,0.00015997,2]
[420062084,1775641853784,-151.0,0.00015997,2]
[420062085,1775641853793,-151.0,0.00015997,2]
[420062086,1775641853803,-2294.97396364,0.00015999,2]
[420062087,1775641853812,-666.0,0.00015999,2]
[420062088,1775641853823,-379.07938652,0.00015999,2]
[420062089,1775641853833,-254.97243642,0.00016,2]
[420062090,1775641853843,-153.03603175,0.00016,2]
[420062091,1775641853852,-240.76039255,0.00016,2]
[420062092,1775641853862,-257.21753865,0.00016,2]
[420062093,1775641853872,-299.8368581,0.00016,2]
[420062094,1775641853882,-154.96470644,0.00016,2]
[420062095,1775641853892,-246.14760097,0.00016,2]
[420062096,1775641853902,-265.82430715,0.00016,2]
[420062097,1775641853911,-235.51154759,0.00016,2]
[420062098,1775641853920,-260.08916634,0.00016,2]
[420062099,1775641853930,-175.09773323,0.00016,2]
[420062100,1775641853940,-253.01547596,0.00016,2]
[420062101,1775641853949,-1742605.69286317,0.00016,2]
[420062102,1775641853959,-2757187.61025032,0.00016,2]
[420062103,1775641855554,-151.0,0.0001015,2]
[420062104,1775641855565,-200.0,0.00013699,2]
[420062105,1775641855575,-291.455006,0.000157,2]
[420062106,1775641855586,-2516.179105,0.000157,2]
[420062107,1775641855596,-151.0,0.000157,2]
[420062108,1775641855605,-2172.987222,0.000157,2]
[420062109,1775641855615,-4046.86864446,0.00016,2]
[420062110,1775641855627,-522.9232407,0.00016,2]
[420062111,1775641857043,-301.92197159,0.00016,2]
[420062112,1775641857055,-331.79488458,0.00016,2]
[420062113,1775641857099,-151.0,0.000157,2]
[420062114,1775641857108,-2700.43843768,0.00016,2]
[420062115,1775641857121,-509.65562623,0.00016,2]
[420062116,1775641857133,-8141.74443144,0.00016,2]
[420062117,1775641857147,-7954.2,0.00016,2]
[420062118,1775641857236,-3405.75822781,9.78e-05,2]
[420062119,1775641857247,-25566.36231859,0.00016,2]
[420062120,1775641857836,-1490.41848363,0.00011182,2]
[420062121,1775641857847,-2516.179105,0.000157,2]
[420062122,1775641857857,-151.0,0.000157,2]
[420062123,1775641857867,-2172.987222,0.000157,2]
[420062124,1775641857877,-294.885157,0.000157,2]
[420062125,1775641857887,-2955.5069735,0.00016,2]
[420062126,1775641857901,-7402.38890823,0.00016,2]
[420062127,1775641857914,-2173.28797712,0.00016,2]
[420062128,1775641857925,-254817.94855303,0.00016,2]
[420062129,1775641857937,-2370.58987861,0.00016,2]
[420062130,1775641857952,-1709.76368012,0.00016,2]
[420062131,1775641858027,-3405.75822779,0.0001279,2]
[420062132,1775641858037,-311303.99769738,0.00016,2]
[420062133,1775641858098,-6652.6257094,0.00016,2]
[420062134,1775641858111,-1733.59562206,0.00016,2]
[420062135,1775641858123,-293.73931996,0.00016,2]
[420062136,1775641858135,-43456.33965862,0.00016,2]
[420062139,1775641925674,374.5628,9.071e-05,2]
[420062140,1775641990588,152.0,9.071e-05,3]
[420062141,1775642049078,152.0,9.071e-05,3]
[420062142,1775642111462,152.0,9.071e-05,3]
[420062143,1775642145413,3901.801621,9.522e-05,2]
[420062144,1775642167132,152.0,9.071e-05,3]
[420062145,1775642176804,500.0,8.993e-05,2]
[420062146,1775642225846,152.0,9.071e-05,3]
[420062147,1775642264875,2479.01,8.993e-05,2]
[420062148,1775642279327,235.19,7.653e-05,2]
[420062149,1775642279539,235.19,8.418e-05,2]
[420062150,1775642279747,235.19,9.184e-05,2]
[420062151,1775642287473,152.0,9.071e-05,3]
[420062152,1775642345768,152.0,9.071e-05,3]
[420062153,1775642358684,200.0,9.419e-05,2]
[420062154,1775642363186,179.0,6.537e-05,2]
[420062155,1775642363459,177.0,6.537e-05,2]
[420062156,1775642363698,177.0,6.537e-05,2]
[420062157,1775642363969,177.0,6.537e-05,2]
[420062158,1775642364872,254.0,6.537e-05,2]
[420062159,1775642406158,152.0,9.071e-05,3]
[420062161,1775642467711,152.0,9.071e-05,3]
[420062162,1775642528359,152.0,9.071e-05,3]
[420062163,1775642529066,250.0,9.319e-05,2]
[420062164,1775642529168,250.0,9.468e-05,2]
[420062165,1775642591063,152.0,9.071e-05,3]
[420062167,1775642651435,152.0,9.071e-05,3]
[420062168,1775642666720,1163.41,4.349e-05,2]
[420062169,1775642666914,1163.41,4.578e-05,2]
[420062170,1775642667313,1163.41,4.807e-05,2]
[420062171,1775642667505,1163.41,5.035e-05,2]
[420062172,1775642667696,1163.41,5.264e-05,2]
[420062173,1775642667892,1163.41,5.493e-05,2]
[420062174,1775642668084,291.55,5.722e-05,2]
[420062175,1775642668109,871.86,5.722e-05,2]
[420062176,1775642668280,1163.41,5.951e-05,2]
[420062177,1775642668484,1163.41,6.18e-05,2]
[420062178,1775642668665,1163.41,6.409e-05,2]
[420062179,1775642668857,1163.41,6.638e-05,2]
[420062180,1775642669064,1163.41,6.866e-05,2]
[420062181,1775642669296,1163.41,7.095e-05,2]
[420062182,1775642669433,1163.41,7.324e-05,2]
[420062183,1775642669621,984.28,7.553e-05,2]
[420062184,1775642669647,179.13,7.553e-05,2]
[420062185,1775642669813,1163.41,7.782e-05,2]
[420062186,1775642670090,1163.41,8.011e-05,2]
[420062187,1775642670290,1163.41,8.24e-05,2]
[420062188,1775642670481,1163.41,8.469e-05,2]
[420062189,1775642670684,1163.41,8.697e-05,2]